bitfinex/quotes_BTCUSD_20250620
["timestamp","ask_amount","ask_price","bid_price","bid_amount"]
[1750434376995,5.61622353,104580.0,104570.0,0.017]
[1750434377246,6.52230677,104580.0,104570.0,0.017]
[1750434380816,6.52230677,104580.0,104570.0,0.20825944]
[1750434381039,6.52230677,104580.0,104570.0,0.21782241]
[1750434381470,6.52230677,104580.0,104570.0,0.22738519]
[1750434382124,6.5127449,104580.0,104570.0,0.22738529]
[1750434382335,6.5127449,104580.0,104570.0,0.26894798]
[1750434382789,6.5127449,104580.0,104570.0,0.29098529]
[1750434383450,6.5127449,104580.0,104570.0,0.30054807]
[1750434383999,6.51399064,104580.0,104570.0,0.31011058]
[1750434384201,6.51399064,104580.0,104570.0,0.31967236]
[1750434384411,6.32274876,104580.0,104570.0,0.32081236]
[1750434384831,6.53311392,104580.0,104570.0,0.30054761]
[1750434385069,6.52355251,104580.0,104570.0,0.30054761]
[1750434385858,6.52355251,104580.0,104570.0,0.31011003]
[1750434386134,6.21790842,104580.0,104570.0,0.32081236]
[1750434386334,1.29825747,104580.0,104570.0,0.32081236]
[1750434386536,0.45504162,104580.0,104570.0,0.32081236]
[1750434386967,0.90808324,104580.0,104570.0,0.32081236]
[1750434387137,0.45504162,104580.0,104570.0,0.32081236]
[1750434387342,0.342,104580.0,104570.0,0.32081236]
[1750434387544,0.79504162,104580.0,104570.0,0.32081236]
[1750434388558,0.89031147,104580.0,104570.0,0.32081236]
[1750434388782,1.34335309,104580.0,104570.0,0.32081236]
[1750434392210,1.24808324,104580.0,104570.0,0.32081236]
[1750434392779,0.79504162,104580.0,104570.0,0.32081236]
[1750434393327,1.24808324,104580.0,104570.0,0.32081236]
[1750434393545,1.24808324,104580.0,104570.0,0.48529236]
[1750434395253,1.25764447,104580.0,104570.0,0.31967236]
[1750434395457,6.21596889,104580.0,104570.0,0.31967236]
[1750434395663,6.18728364,104580.0,104570.0,0.48399236]
[1750434395865,1.34335309,104580.0,104570.0,0.48399236]
[1750434396102,1.24808324,104580.0,104570.0,0.48513236]
[1750434396302,1.27676821,104580.0,104570.0,0.48399236]
[1750434396719,1.25764465,104580.0,104570.0,0.48399236]
[1750434396913,1.26720615,104580.0,104570.0,0.48391236]
[1750434397124,1.362476,104580.0,104570.0,0.48391236]
[1750434397325,1.3529145,104580.0,104570.0,0.48391236]
[1750434397538,1.34335309,104580.0,104570.0,0.48391236]
[1750434397744,1.3529145,104580.0,104570.0,0.48505236]
[1750434398157,1.34335309,104580.0,104570.0,0.48505236]
[1750434398806,1.37203778,104580.0,104570.0,0.48505236]
[1750434399009,1.37203769,104580.0,104570.0,0.48505236]
[1750434399221,1.362476,104580.0,104570.0,0.48505236]
[1750434399426,1.37203769,104580.0,104570.0,0.48505236]
[1750434399626,1.38159956,104580.0,104570.0,0.48505236]
[1750434399859,1.38159947,104580.0,104570.0,0.48391236]
[1750434400070,1.37203769,104580.0,104570.0,0.31967236]
[1750434400278,1.57284062,104580.0,104570.0,0.2909851]
[1750434400485,1.65892814,104580.0,104570.0,0.38182232]
[1750434400687,1.68765914,104580.0,104570.0,0.39138501]
[1750434401360,1.68765914,104580.0,104570.0,0.40094761]
[1750434401575,1.68765914,104580.0,104570.0,0.41554779]
[1750434401576,1.68565914,104580.0,104570.0,0.41554779]
[1750434401789,1.67772764,104580.0,104570.0,0.39994779]
[1750434402002,1.67809764,104580.0,104570.0,0.39994779]
[1750434402215,6.50290564,104580.0,104570.0,0.21682232]
[1750434402414,6.49334404,104580.0,104570.0,0.38070232]
[1750434402670,6.49434404,104580.0,104570.0,0.21682241]
[1750434402887,6.5172609,104580.0,104570.0,0.39018529]
[1750434403310,6.50769903,104580.0,104570.0,0.39018529]
[1750434404009,6.50769903,104580.0,104570.0,0.37097944]
[1750434404221,6.50769903,104580.0,104570.0,0.38054241]
[1750434404453,6.51726108,104580.0,104570.0,0.39010519]
[1750434404671,6.51689108,104580.0,104570.0,0.43166788]
[1750434405774,6.15397422,104580.0,104570.0,0.43166788]
[1750434405996,6.15397422,104580.0,104570.0,0.41254241]
[1750434406238,6.15434422,104580.0,104570.0,0.17972]
[1750434406467,6.15434422,104580.0,104570.0,0.38054241]
[1750434406468,6.1772628,104580.0,104570.0,0.38054241]
[1750434406652,6.1772628,104580.0,104570.0,0.39010519]
[1750434407106,6.15434422,104580.0,104570.0,0.39010519]
[1750434407562,6.17726287,104580.0,104570.0,0.42160519]
[1750434407772,6.51726287,104580.0,104570.0,0.42160519]
[1750434407986,6.51726287,104580.0,104570.0,0.41204241]
[1750434408194,6.50770082,104580.0,104570.0,0.41204241]
[1750434408409,6.50770082,104580.0,104570.0,0.18928297]
[1750434408633,0.00956278,104570.0,104560.0,0.0638]
[1750434408903,0.55040504,104560.0,104550.0,0.27322175]
[1750434409119,0.55040504,104560.0,104550.0,0.42705704]
[1750434409120,1.45648828,104560.0,104550.0,0.42705704]
[1750434409330,1.45648828,104560.0,104550.0,0.26365704]
[1750434409541,1.55176721,104560.0,104550.0,0.43662175]
[1750434409759,0.0095648,104550.0,104540.0,0.20091081]
[1750434409938,0.0095648,104550.0,104540.0,0.43714615]
[1750434409939,6.04615041,104550.0,104540.0,0.43714615]
[1750434410176,5.86441789,104550.0,104540.0,0.45627638]
[1750434410360,5.8739825,104550.0,104540.0,0.29287638]
[1750434410593,5.8739825,104550.0,104540.0,0.45623638]
[1750434411980,5.86641789,104550.0,104540.0,0.46523638]
[1750434412221,5.76158352,104550.0,104540.0,0.46523638]
[1750434412477,5.76158352,104550.0,104540.0,0.46742638]
[1750434413021,5.77114795,104550.0,104540.0,0.46742638]
[1750434413275,5.7811444,104550.0,104540.0,0.46742638]
[1750434413510,5.79070883,104550.0,104540.0,0.46742638]
[1750434413719,5.88597868,104550.0,104540.0,0.46742638]
[1750434413940,5.89554329,104550.0,104540.0,0.46623638]
[1750434414460,6.08684006,104550.0,104540.0,0.46623638]
[1750434414688,5.88597932,104550.0,104540.0,0.46623638]
[1750434414928,6.08684006,104550.0,104540.0,0.46623638]
[1750434415172,6.0868408,104550.0,104540.0,0.46623638]
[1750434415413,6.0868408,104550.0,104540.0,0.44678625]
[1750434415414,6.17255548,104550.0,104540.0,0.44678625]
[1750434415654,6.49379644,104550.0,104540.0,0.21145021]
[1750434415887,6.48423173,104550.0,104540.0,0.22101583]
[1750434416103,6.30213022,104550.0,104540.0,0.31401196]
[1750434416322,6.31169428,104550.0,104540.0,0.31301132]
[1750434416578,6.51255502,104550.0,104540.0,0.31301132]
[1750434416789,6.34143328,104550.0,104540.0,0.30344625]
[1750434416997,6.58721402,104550.0,104540.0,0.31301132]
[1750434417211,6.58521457,104550.0,104540.0,0.22058109]
[1750434417422,6.56845544,104550.0,104540.0,0.17169018]
[1750434417637,6.56845544,104550.0,104540.0,0.1998845]
[1750434417884,6.56845544,104550.0,104540.0,0.20945021]
[1750434418104,6.56845544,104550.0,104540.0,0.1998845]
[1750434418556,6.56845544,104550.0,104540.0,0.00857018]
[1750434419202,6.56845544,104550.0,104540.0,0.20945021]
[1750434419411,6.56845544,104550.0,104540.0,0.21901583]
[1750434419619,6.56808544,104550.0,104540.0,0.29288136]
[1750434420468,6.55852073,104550.0,104540.0,0.30244671]
[1750434420678,6.55852073,104550.0,104540.0,0.29288136]
[1750434421520,6.55852073,104550.0,104540.0,0.27375021]
[1750434421971,6.54932593,104550.0,104540.0,0.00857018]
[1750434422418,6.54895593,104550.0,104540.0,0.20945012]
[1750434422649,6.54932593,104550.0,104540.0,0.20945012]
[1750434422882,6.54932593,104550.0,104540.0,0.00857018]
[1750434423706,7.00236755,104550.0,104540.0,0.00857018]
[1750434424421,7.17580755,104550.0,104540.0,0.00857018]
[1750434424843,7.17580755,104550.0,104520.0,0.42857238]
[1750434424844,5.04483942,104530.0,104520.0,0.42857238]
[1750434425056,6.14147144,104530.0,104520.0,0.4191461]
[1750434425264,6.13190545,104530.0,104520.0,0.27516091]
[1750434425510,5.82616109,104530.0,104520.0,0.29548499]
[1750434425736,6.69925301,104550.0,104540.0,0.07536571]
[1750434425951,6.63510946,104550.0,104540.0,0.0658]
[1750434426174,6.62554494,104550.0,104540.0,0.25711432]
[1750434426384,6.62554494,104550.0,104540.0,0.26667994]
[1750434426601,5.82945264,104550.0,104540.0,0.27624547]
[1750434426855,6.932659,104550.0,104540.0,0.28581082]
[1750434427076,6.76049229,104550.0,104540.0,0.29537589]
[1750434427298,6.75092758,104550.0,104540.0,0.29537589]
[1750434427521,6.75292758,104550.0,104540.0,0.29537589]
[1750434427744,6.93465992,104550.0,104540.0,0.27624547]
[1750434427972,7.46132226,104550.0,104540.0,0.0658]
[1750434428209,5.36568794,104540.0,104530.0,0.44833506]
[1750434428437,5.62741506,104540.0,104530.0,0.45790105]
[1750434428656,5.828295,104540.0,104530.0,0.45790105]
[1750434428881,5.73225053,104540.0,104530.0,0.45790105]
[1750434429090,5.72268463,104540.0,104530.0,0.45912105]
[1750434429536,5.73224998,104540.0,104530.0,0.46012105]
[1750434429753,5.73224998,104540.0,104530.0,0.29578105]
[1750434429966,6.52998405,104540.0,104530.0,0.42061263]
[1750434430174,6.46268987,104540.0,104530.0,0.16408]
[1750434430405,6.46231987,104540.0,104530.0,0.43814543]
[1750434430646,6.46231987,104540.0,104530.0,0.42857917]
[1750434430854,6.46431987,104540.0,104530.0,0.26549917]
[1750434431266,6.46431987,104540.0,104530.0,0.0636]
[1750434431478,5.37527306,104530.0,104520.0,0.43742073]
[1750434431694,6.3861925,104530.0,104520.0,0.28382781]
[1750434431939,6.2044265,104530.0,104520.0,0.4565548]
[1750434432147,6.4053253,104530.0,104520.0,0.42781355]
[1750434432358,6.39575941,104530.0,104520.0,0.44694818]
[1750434432568,6.20442678,104530.0,104520.0,0.46608216]
[1750434432774,6.20542678,104530.0,104520.0,0.46608216]
[1750434433226,6.39675941,104530.0,104520.0,0.46608216]
[1750434433662,6.39675941,104530.0,104520.0,0.45651526]
[1750434434090,6.19586005,104530.0,104520.0,0.46608216]
[1750434434564,6.39875931,104530.0,104520.0,0.29339526]
[1750434434782,6.47490572,104530.0,104520.0,0.26475955]
[1750434435020,6.47490572,104530.0,104520.0,0.28389381]
[1750434435223,6.47490572,104530.0,104520.0,0.44689381]
[1750434435436,6.52654503,104530.0,104520.0,0.44689381]
[1750434435650,6.50365072,104530.0,104520.0,0.4468939]
[1750434436092,6.50365072,104530.0,104520.0,0.43732682]
[1750434436266,6.50365072,104530.0,104520.0,0.437327]
[1750434436472,6.52654918,104530.0,104520.0,0.437327]
[1750434436886,6.52654918,104530.0,104520.0,0.44689436]
[1750434438124,6.31608348,104530.0,104520.0,0.44689436]
[1750434438341,6.54568115,104530.0,104520.0,0.46724844]
[1750434438544,6.55524778,104530.0,104520.0,0.45768154]
[1750434438726,6.54568189,104530.0,104520.0,0.45638154]
[1750434439550,6.54568189,104530.0,104520.0,0.46594853]
[1750434439789,6.34478263,104530.0,104520.0,0.46594853]
[1750434439997,6.33521609,104530.0,104520.0,0.46594789]
[1750434440200,6.33521554,104530.0,104520.0,0.46716789]
[1750434440443,6.34478189,104530.0,104520.0,0.46716789]
[1750434440653,6.33521554,104530.0,104520.0,0.46716789]
[1750434441306,0.86681705,104530.0,104520.0,0.46716789]
[1750434441723,0.81894008,104530.0,104520.0,0.46716789]
[1750434441934,0.79604162,104530.0,104520.0,0.46716789]
[1750434442168,0.343,104530.0,104520.0,0.46716789]
[1750434442406,0.36592042,104530.0,104520.0,0.46716789]
[1750434442613,0.81896204,104530.0,104520.0,0.46716789]
[1750434443474,0.91423189,104530.0,104520.0,0.46716789]
[1750434444087,0.81896204,104530.0,104520.0,0.46716789]
[1750434444926,0.82852803,104530.0,104520.0,0.46716789]
[1750434445348,0.82852793,104530.0,104520.0,0.46716789]
[1750434445551,0.81896204,104530.0,104520.0,0.46716789]
[1750434446843,0.36592042,104530.0,104520.0,0.46716789]
[1750434447059,0.79604162,104530.0,104520.0,0.53301489]
[1750434447304,0.45604162,104530.0,104520.0,0.46716789]
[1750434447488,0.79604162,104530.0,104520.0,0.56244682]
[1750434451201,0.79604162,104530.0,104520.0,0.62244682]
[1750434452897,0.343,104530.0,104520.0,0.62244682]
[1750434453105,0.003,104530.0,104520.0,0.62244682]
[1750434454745,0.45604162,104530.0,104520.0,0.62244682]
[1750434456568,0.45604162,104530.0,104520.0,0.62152682]
[1750434461365,0.45604162,104530.0,104520.0,0.62140682]
[1750434462039,0.45604162,104530.0,104520.0,0.62128682]
[1750434464227,0.45604162,104530.0,104520.0,0.45952682]
[1750434464442,0.45604162,104530.0,104520.0,0.62124682]
[1750434464660,0.45604162,104530.0,104520.0,0.45952682]
[1750434464883,0.45604162,104530.0,104520.0,0.62124682]
[1750434471577,0.003,104530.0,104520.0,0.62124682]
[1750434471801,0.45604162,104530.0,104520.0,0.62124682]
[1750434472464,0.003,104530.0,104520.0,0.70687371]
[1750434473960,0.003,104530.0,104520.0,1.17445618]
[1750434474440,0.00011282,104530.0,104520.0,0.72141456]
[1750434474676,0.00011282,104530.0,104520.0,1.17445618]
[1750434474927,0.79304162,104550.0,104540.0,0.28631036]
[1750434475122,0.79304162,104550.0,104540.0,0.55409225]
[1750434475424,0.81047311,104550.0,104540.0,0.55409225]
[1750434476858,0.35743149,104550.0,104540.0,0.55409225]
[1750434477071,0.79304162,104550.0,104540.0,0.55409225]
[1750434477288,0.79404162,104550.0,104540.0,0.56109225]
[1750434478176,0.79404162,104550.0,104540.0,0.56209225]
[1750434478388,0.79404162,104550.0,104540.0,0.55244929]
[1750434480579,0.79404162,104550.0,104540.0,0.39072929]
[1750434480792,1.24708324,104550.0,104540.0,0.29545036]
[1750434481227,1.26621164,104550.0,104540.0,0.29431036]
[1750434481490,6.39812032,104550.0,104540.0,0.008]
[1750434481720,6.54357642,104550.0,104540.0,0.21844547]
[1750434481936,6.48383509,104550.0,104540.0,0.37056003]
[1750434482189,6.47427066,104550.0,104540.0,0.36099432]
[1750434482403,6.49719223,104550.0,104540.0,0.35999432]
[1750434482625,6.49919159,104550.0,104540.0,0.16868]
[1750434482869,6.31299301,104550.0,104540.0,0.16868]
[1750434483094,6.33591524,104550.0,104540.0,0.16868]
[1750434483313,6.33591524,104550.0,104540.0,0.007]
[1750434483744,6.33491524,104550.0,104540.0,0.20088003]
[1750434483983,6.01549252,104550.0,104540.0,0.22957616]
[1750434484232,5.92017756,104550.0,104540.0,0.24214123]
[1750434484439,5.92974172,104550.0,104540.0,0.24214123]
[1750434484653,5.93930597,104550.0,104540.0,0.24214123]
[1750434484868,5.9776094,104550.0,104540.0,0.24214123]
[1750434485348,1.13367272,104550.0,104540.0,0.24214123]
[1750434485562,1.14323697,104550.0,104540.0,0.24214123]
[1750434486012,1.24807116,104550.0,104540.0,0.24214123]
[1750434486233,1.25800632,104550.0,104540.0,0.24214123]
[1750434486459,1.44930345,104550.0,104540.0,0.23257616]
[1750434486672,1.53501804,104550.0,104540.0,0.384691]
[1750434486905,1.52545352,104550.0,104540.0,0.384691]
[1750434487328,1.52545352,104550.0,104540.0,0.39425625]
[1750434487549,1.33415749,104550.0,104540.0,0.40382132]
[1750434487986,1.32459177,104550.0,104540.0,0.40382132]
[1750434488208,1.33415629,104550.0,104540.0,0.40382132]
[1750434488425,1.35328561,104550.0,104540.0,0.40382132]
[1750434488635,1.3149819,104550.0,104540.0,0.40382132]
[1750434488853,1.30541729,104550.0,104540.0,0.40382132]
[1750434489296,1.50627803,104550.0,104540.0,0.39425625]
[1750434489520,1.51584283,104550.0,104540.0,0.39425625]
[1750434489744,1.50627877,104550.0,104540.0,0.39425625]
[1750434489968,1.50627877,104550.0,104540.0,0.40382141]
[1750434490634,1.50627877,104550.0,104540.0,0.39425625]
[1750434490885,6.77559953,104550.0,104540.0,0.16468]
[1750434491095,6.32255791,104550.0,104540.0,0.35599432]
[1750434491320,6.32255791,104550.0,104540.0,0.36555985]
[1750434491538,6.3129932,104550.0,104540.0,0.003]
[1750434492187,6.3129932,104550.0,104540.0,0.20387994]
[1750434492399,6.33590958,104550.0,104540.0,0.20387994]
[1750434492995,6.83410958,104550.0,104540.0,0.20387994]
[1750434493895,6.83410958,104550.0,104540.0,0.19431432]
[1750434494080,6.83410958,104550.0,104540.0,0.20388003]
[1750434494252,6.83410958,104550.0,104540.0,0.21344565]
[1750434495752,6.83410958,104550.0,104540.0,0.003]
[1750434495951,6.82278478,104550.0,104540.0,0.003]
[1750434496538,5.91670154,104550.0,104540.0,0.003]
[1750434496699,6.82278478,104550.0,104540.0,0.003]
[1750434499136,6.85152678,104550.0,104540.0,0.003]
[1750434499941,6.86606763,104550.0,104540.0,0.003]
[1750434500389,5.39440549,104530.0,104520.0,0.27102664]
[1750434500654,6.48147171,104530.0,104520.0,0.43266664]
[1750434500865,6.47190563,104530.0,104520.0,0.43266664]
[1750434501085,6.47190563,104530.0,104520.0,0.44223372]
[1750434501933,6.47190563,104530.0,104520.0,0.43266664]
[1750434502292,6.46270928,104530.0,104520.0,0.00124108]
[1750434502505,6.50378487,104530.0,104520.0,0.00124108]
[1750434502954,0.19136924,104510.0,104500.0,0.26207794]
[1750434503170,0.75881689,104510.0,104500.0,0.28126345]
[1750434503396,0.75881689,104510.0,104500.0,0.45247237]
[1750434503604,0.75881689,104510.0,104500.0,0.43333444]
[1750434503852,0.75881689,104510.0,104500.0,0.44290354]
[1750434504292,0.75881689,104510.0,104500.0,0.45247236]
[1750434504498,0.75881689,104510.0,104500.0,0.44290354]
[1750434504706,0.75024898,104510.0,104500.0,0.44390354]
[1750434504921,0.75024898,104510.0,104500.0,0.45347255]
[1750434505130,0.75024898,104510.0,104500.0,0.41527459]
[1750434505336,0.75124898,104510.0,104500.0,0.42484396]
[1750434505559,0.75124898,104510.0,104500.0,0.43441324]
[1750434505766,0.75124898,104510.0,104500.0,0.44398234]
[1750434505989,5.58562498,104510.0,104500.0,0.44398234]
[1750434506192,5.58562535,104510.0,104500.0,0.44398234]
[1750434506400,5.67133601,104510.0,104500.0,0.43441324]
[1750434506601,6.11480926,104510.0,104500.0,0.43441324]
[1750434507055,6.11480926,104510.0,104500.0,0.44398243]
[1750434507672,6.11480926,104510.0,104500.0,0.45355153]
[1750434507881,6.13394562,104510.0,104500.0,0.4631199]
[1750434508122,5.70960865,104510.0,104500.0,0.4631199]
[1750434508325,5.28941725,104510.0,104500.0,0.4642699]
[1750434508531,5.27984962,104510.0,104500.0,0.4642699]
[1750434509376,0.56944729,104510.0,104500.0,0.4642699]
[1750434510190,0.55987929,104510.0,104500.0,0.4642699]
[1750434510394,0.56944729,104510.0,104500.0,0.4642699]
[1750434511023,0.55987929,104510.0,104500.0,0.4642699]
[1750434511369,0.47417744,104510.0,104500.0,0.4642699]
[1750434511975,0.46460944,104510.0,104500.0,0.4642699]
[1750434512189,0.47417753,104510.0,104500.0,0.4642699]
[1750434513627,0.48374571,104510.0,104500.0,0.4642699]
[1750434514142,0.47417753,104510.0,104500.0,0.4642699]
[1750434514349,0.56944738,104510.0,104500.0,0.4642699]
[1750434514571,0.57901565,104510.0,104500.0,0.4642699]
[1750434515835,6.05780288,104510.0,104500.0,0.29191117]
[1750434516070,6.05780288,104510.0,104500.0,0.46308009]
[1750434516492,6.05780288,104510.0,104500.0,0.46307963]
[1750434516701,5.41339202,104510.0,104500.0,0.46307917]
[1750434517112,5.60476126,104510.0,104500.0,0.46307917]
[1750434517303,5.38468729,104510.0,104500.0,0.46422917]
[1750434517568,5.40382338,104510.0,104500.0,0.46422917]
[1750434517773,5.41339165,104510.0,104500.0,0.46422917]
[1750434517984,5.40382338,104510.0,104500.0,0.46422917]
[1750434518191,0.46460944,104510.0,104500.0,0.46422917]
[1750434519706,0.46460934,104510.0,104500.0,0.46422917]
[1750434520137,0.47417725,104510.0,104500.0,0.46422917]
[1750434520787,5.31812152,104510.0,104500.0,0.30147917]
[1750434520998,5.86643299,104510.0,104500.0,0.46303917]
[1750434521204,6.05780223,104510.0,104500.0,0.45347044]
[1750434521421,6.06737069,104510.0,104500.0,0.45347044]
[1750434521627,6.05780297,104510.0,104500.0,0.45347044]
[1750434521846,6.14351399,104510.0,104500.0,0.43433306]
[1750434522098,0.55052556,104500.0,104490.0,0.0001]
[1750434522325,5.36578416,104490.0,104480.0,0.0001]
[1750434522544,6.82055795,104490.0,104480.0,0.0001]
[1750434522766,6.88863354,104490.0,104480.0,0.0001]
[1750434522986,6.909454,104490.0,104480.0,0.0001]
[1750434523198,6.55168223,104490.0,104480.0,0.0001]
[1750434523654,6.55167434,104490.0,104480.0,0.0001]
[1750434523899,6.55267434,104490.0,104480.0,0.0021]
[1750434524102,6.51987434,104490.0,104480.0,0.20309539]
[1750434524311,6.52187434,104490.0,104480.0,0.20309539]
[1750434524513,6.52187434,104490.0,104480.0,0.0116712]
[1750434524934,6.53173147,104490.0,104480.0,0.0021]
[1750434525149,6.56510147,104490.0,104480.0,0.0021]
[1750434525564,6.60866147,104490.0,104480.0,0.0021]
[1750434527752,5.01623219,104480.0,104470.0,0.20107331]
[1750434527962,6.12243523,104480.0,104470.0,0.20107331]
[1750434528177,6.12243523,104480.0,104470.0,0.21064516]
[1750434528827,6.12443523,104480.0,104470.0,0.20107331]
[1750434529066,6.13400616,104480.0,104470.0,0.21064506]
[1750434529290,5.94258197,104480.0,104470.0,0.21064506]
[1750434529501,5.47996887,104480.0,104470.0,0.28141654]
[1750434529728,5.48953953,104480.0,104470.0,0.28256654]
[1750434529999,4.826808,104480.0,104470.0,0.28256654]
[1750434530227,5.27984962,104480.0,104470.0,0.28256654]
[1750434530443,0.79504162,104480.0,104470.0,0.28256654]
[1750434530873,0.79504162,104480.0,104470.0,0.37784547]
[1750434531536,0.79504162,104480.0,104470.0,0.45624298]
[1750434531752,0.002,104480.0,104470.0,0.45624298]
[1750434532166,0.79304162,104490.0,104480.0,0.2831367]
[1750434532386,0.79304162,104490.0,104480.0,0.54104563]
[1750434533277,0.79304162,104490.0,104480.0,0.54204563]
[1750434534118,0.79404162,104490.0,104480.0,0.54504563]
[1750434534328,0.79404162,104490.0,104480.0,0.60504563]
[1750434534955,0.341,104490.0,104480.0,0.60504563]
[1750434535193,0.79404162,104490.0,104480.0,0.60504563]
[1750434536700,0.45404162,104490.0,104480.0,0.60504563]
[1750434539124,0.45404162,104490.0,104480.0,0.60500563]
[1750434539769,1.24708324,104490.0,104480.0,0.5085767]
[1750434539981,1.24708324,104490.0,104480.0,0.3482867]
[1750434540206,1.24708324,104490.0,104480.0,0.5096867]
[1750434540415,1.34235309,104490.0,104480.0,0.5096867]
[1750434540867,1.24708324,104490.0,104480.0,0.3482867]
[1750434541082,1.24708324,104490.0,104480.0,0.5096867]
[1750434541301,0.79404162,104490.0,104480.0,0.5096867]
[1750434541986,0.341,104490.0,104480.0,0.5096867]
[1750434542201,0.001,104490.0,104480.0,0.60496563]
[1750434542416,0.001,104490.0,104480.0,0.68652662]
[1750434543750,0.001,104490.0,104480.0,0.68552662]
[1750434543970,4.692e-05,104500.0,104490.0,0.28426564]
[1750434544204,4.692e-05,104500.0,104490.0,0.42310457]
[1750434545545,0.00204692,104500.0,104490.0,0.42610457]
[1750434545763,0.00204692,104500.0,104490.0,0.44181343]
[1750434548485,0.00204692,104500.0,104490.0,0.45635428]
[1750434553073,0.00204692,104500.0,104490.0,0.60309343]
[1750434553294,0.00204692,104500.0,104490.0,0.38454457]
[1750434553511,0.00204692,104500.0,104490.0,0.58938457]
[1750434556966,0.00204692,104500.0,104490.0,0.60392542]
[1750434561378,0.00204692,104500.0,104490.0,1.17093406]
[1750434562871,0.00204692,104500.0,104490.0,1.05735064]
[1750434564590,0.00204692,104500.0,104490.0,2.14707586]
[1750434565053,0.00204692,104500.0,104490.0,1.69365064]
[1750434566143,0.00204692,104500.0,104490.0,2.14707586]
[1750434566768,4.692e-05,104500.0,104490.0,2.14407586]
[1750434567187,0.00204692,104500.0,104490.0,1.24722542]
[1750434567422,0.00204692,104500.0,104490.0,2.15407586]
[1750434567602,0.00204692,104500.0,104490.0,2.16807586]
[1750434568078,0.00204692,104500.0,104490.0,2.51807586]
[1750434568296,0.00204692,104500.0,104490.0,2.56807586]
[1750434569383,0.00204692,104500.0,104490.0,1.40638542]
[1750434569597,0.00204692,104500.0,104490.0,1.04184457]
[1750434570033,0.00204692,104500.0,104490.0,0.94998457]
[1750434570253,0.00204692,104500.0,104490.0,0.76008542]
[1750434570459,0.00204692,104500.0,104490.0,0.96452542]
[1750434571099,0.00204692,104500.0,104490.0,0.40554457]
[1750434571333,0.53171708,104500.0,104490.0,0.44890457]
[1750434571565,0.53171708,104500.0,104490.0,0.54698457]
[1750434571771,0.53171708,104500.0,104490.0,0.34254457]
[1750434571985,0.53171708,104500.0,104490.0,0.54694457]
[1750434572884,0.00204692,104500.0,104490.0,0.59794457]
[1750434573095,0.00204692,104500.0,104490.0,0.60094457]
[1750434573505,4.692e-05,104500.0,104490.0,0.58594457]
[1750434573927,0.00104692,104500.0,104490.0,0.58894457]
[1750434575740,0.00104692,104500.0,104490.0,0.38454457]
[1750434575950,0.00104692,104500.0,104490.0,0.65731158]
[1750434577422,0.00104692,104500.0,104490.0,0.63517179]
[1750434577624,0.00104692,104500.0,104490.0,0.65285796]
[1750434579587,0.00117339,104500.0,104490.0,0.65285796]
[1750434580244,0.00069493,104500.0,104490.0,0.65285796]
[1750434580683,0.00069493,104500.0,104490.0,1.23426539]
[1750434580684,0.00056846,104500.0,104490.0,1.23426539]
[1750434581094,2.665e-05,104500.0,104490.0,1.23426539]
[1750434581753,2.665e-05,104500.0,104490.0,0.66727234]
[1750434584118,2.665e-05,104500.0,104490.0,1.23426539]
[1750434585641,2.665e-05,104500.0,104490.0,1.92056539]
[1750434585848,2.665e-05,104500.0,104490.0,1.87056539]
[1750434586266,1.04828799,104540.0,104530.0,0.22003142]
[1750434586475,1.04879907,104540.0,104530.0,0.38095142]
[1750434587524,1.04979907,104540.0,104530.0,0.38095142]
[1750434588216,1.05879907,104540.0,104530.0,0.38195142]
[1750434589484,1.13666456,104540.0,104530.0,0.38195142]
[1750434589709,1.05879907,104540.0,104530.0,0.38195142]
[1750434590349,0.98255413,104540.0,104530.0,0.38195142]
[1750434592779,0.98255413,104540.0,104530.0,0.22103142]
[1750434592979,0.86899462,104540.0,104530.0,0.38191142]
[1750434594902,0.41556108,104540.0,104530.0,0.38191142]
[1750434595084,0.46394462,104540.0,104530.0,0.38191142]
[1750434595320,0.00951108,104540.0,104530.0,0.38191142]
[1750434595535,0.46294462,104540.0,104530.0,0.38191142]
[1750434595714,0.45394462,104540.0,104530.0,0.38091142]
[1750434596177,0.45494462,104540.0,104530.0,0.38091142]
[1750434597641,0.45994462,104540.0,104530.0,0.38191142]
[1750434599342,0.45957462,104540.0,104530.0,0.38191142]
[1750434599573,0.45957462,104540.0,104530.0,0.44451142]
[1750434600446,0.45957462,104540.0,104530.0,0.47261426]
[1750434600916,0.45957462,104540.0,104530.0,0.47141426]
[1750434601370,0.45957462,104540.0,104530.0,0.44451142]
[1750434601587,0.45957462,104540.0,104530.0,0.44571142]
[1750434602900,0.45957462,104540.0,104530.0,0.38179142]
[1750434603306,0.45994462,104540.0,104530.0,0.38179142]
[1750434604813,0.50179281,104540.0,104530.0,0.38179142]
[1750434605026,0.46674462,104540.0,104530.0,0.38179142]
[1750434605446,0.98250931,104540.0,104530.0,0.22103142]
[1750434605656,6.17601344,104540.0,104530.0,0.39135759]
[1750434606303,6.17601344,104540.0,104530.0,0.3817916]
[1750434606523,6.18557915,104540.0,104530.0,0.39135768]
[1750434606734,6.17601344,104540.0,104530.0,0.39135768]
[1750434606962,6.46260669,104540.0,104530.0,0.001]
[1750434607171,6.47852465,104540.0,104530.0,0.36265917]
[1750434607378,6.44347646,104540.0,104530.0,0.36265917]
[1750434607585,6.46640483,104540.0,104530.0,0.36265917]
[1750434607792,6.44347646,104540.0,104530.0,0.36265917]
[1750434608000,6.44347646,104540.0,104530.0,0.35309263]
[1750434608206,6.12640464,104540.0,104530.0,0.35309263]
[1750434608442,6.46640464,104540.0,104530.0,0.36265926]
[1750434609078,6.46640464,104540.0,104530.0,0.38179224]
[1750434609514,6.46640464,104540.0,104530.0,0.3722258]
[1750434609981,6.46640464,104540.0,104530.0,0.3721858]
[1750434610191,6.44299818,104540.0,104530.0,0.3721858]
[1750434610619,6.44299818,104540.0,104530.0,0.39131859]
[1750434610863,6.45636825,104540.0,104530.0,0.001]
[1750434611108,0.20769926,104530.0,104520.0,0.21046904]
[1750434611309,1.32842063,104530.0,104520.0,0.38075612]
[1750434611754,0.38543834,104520.0,104510.0,0.22004116]
[1750434611978,1.57893601,104520.0,104510.0,0.22004134]
[1750434612196,1.56936911,104520.0,104510.0,0.22004134]
[1750434612429,6.38460993,104520.0,104510.0,0.20090526]
[1750434612636,6.47987978,104520.0,104510.0,0.38076171]
[1750434613283,6.47987978,104520.0,104510.0,0.3903298]
[1750434614126,6.48087978,104520.0,104510.0,0.3903298]
[1750434614331,6.48087978,104520.0,104510.0,0.3998978]
[1750434614537,6.48087978,104520.0,104510.0,0.20190526]
[1750434614538,6.93431332,104520.0,104510.0,0.20190526]
[1750434614769,6.96120887,104520.0,104510.0,0.37219353]
[1750434615001,6.50777533,104520.0,104510.0,0.38176153]
[1750434615203,6.49444623,104520.0,104510.0,0.39132935]
[1750434615419,6.30309502,104520.0,104510.0,0.39132935]
[1750434615630,6.3030952,104520.0,104510.0,0.39132935]
[1750434615870,6.3318442,104520.0,104510.0,0.39132935]
[1750434616292,6.34141165,104520.0,104510.0,0.39132935]
[1750434616707,6.5136286,104520.0,104510.0,0.001]
[1750434616917,6.5136286,104520.0,104510.0,0.16172]